[Event "FIDE CB Open 2022"]
[Site "Ceske Budejovice"]
[Date "2022.07.01"]
[Round "1.5"]
[White "Simek, Petr"]
[Black "Tsifanskaya, Ludmila A"]
[Result "1-0"]
[ECO "D77"]
[WhiteElo "2348"]
[BlackElo "1941"]
[Annotator "TA"]
[PlyCount "112"]
[EventDate "2022.07.01"]
[EventType "swiss"]
[EventCountry "CZE"]
[SourceTitle "playchess.com"]
[Source "ChessBase"]
[SourceQuality "1"]
[TimeControl "40/5400+30:1800+30"]

{[%evp 12,112,24,16,39,30,32,21,118,110,112,111,112,74,89,76,93,75,74,79,75,75,69,74,83,70,83,65,84,30,35,22,27,13,23,4,11,0,14,-14,0,0,66,66,67,18,11,2,13,0,0,0,0,0,0,4,18,18,18,18,18,18,18,20,73,67,77,78,78,78,112,112,101,104,114,114,161,147,162,156,156,150,141,86,170,168,153,154,147,147,520,520,513,513,502,495,460,456,425,373,293,101,332]} 1. d4 {[%emt 0:00:09]} Nf6 {[%emt 0:00:29]} 2. c4 {[%emt 0:00:05]} e6 {[%emt 0:00:13]} 3. Nf3 {[%emt 0:00:06]} d5 {[%emt 0:00:32]} 4. g3 {[%emt 0:00:08]} g6 {[%emt 0:02:20]} 5. Bg2 {[%emt 0:00:47]} Bg7 {[%emt 0:00:09]} 6. O-O {[%emt 0:09:39]} O-O {[%emt 0:03:14]} 7. Qc2 {[%emt 0:02:42]} Na6 {[%emt 0:12:04] 7...b6 is the modern continuation. D77: Fianchetto Grünfeld: 6 0-0: Replies other than 6...c6.} (7... b6 {is interesting.} 8. Ne5 Nfd7 9. Rd1 c6) 8. a3 {[%emt 0:13:18] was the old line (8.Rd1).} c5 {[%emt 0:10:52] Prevents b4.} 9. dxc5 {[%emt 0:01:35] [#]} dxc4 $146 {[%emt 0:00:21]} (9... Nxc5 $11 {keeps the balance.} 10. cxd5 b6) ({Predecessor:} 9... Nxc5 10. b4 Nce4 11. Bb2 Bd7 12. cxd5 Rc8 13. Qb3 exd5 14. Bd4 Re8 15. a4 Qc7 {0-1 (44) Rausis,I (2481)-Narciso Dublan,M (2534) Fagernes 2012}) 10. Qxc4 $16 {[%emt 0:42:50]} Qd5 {[%emt 0:08:03]} 11. Qh4 {[%emt 0:00:31]} (11. Qxd5 Nxd5 12. e4 Ne7 $14) 11... Qxc5 {[%emt 0:05:17]} 12. Nc3 {[%emt 0:05:07] And now Bg5 would win.} (12. Bg5 {is more complex.} Nd5 13. e4 f6 14. exd5 fxg5 15. Nxg5 h6 16. Ne4) 12... Qh5 {[%emt 0:01:17]} 13. Qxh5 {[%emt 0:03:17]} Nxh5 {[%emt 0:00:12]} 14. Be3 {[%emt 0:00:17]} Nf6 {[%emt 0:06:51]} 15. Bd4 {[%emt 0:07:09] White is more active.} Nc7 {[%emt 0:02:26]} 16. Rac1 {[%emt 0:01:04]} Ncd5 {[%emt 0:01:53]} 17. Rfd1 {[%emt 0:05:45]} b6 {[%emt 0:01:45]} 18. Nxd5 {[%emt 0:04:03]} exd5 {[%emt 0:01:20]} 19. e3 {[%emt 0:00:44]} Bf5 {[%emt 0:01:08]} 20. Nh4 {[%emt 0:00:41]} (20. Ne5 $16) 20... Be6 $11 {[%emt 0:00:23]} 21. Rc2 {[%emt 0:00:31]} Rac8 {[%emt 0:01:46]} 22. Re2 {[%emt 0:00:30]} Ne4 {[%emt 0:04:24]} (22... Bg4 {with more complications.} 23. Nf3 Ne4 24. h3 Bxf3 25. Bxf3 Rfd8) 23. Nf3 {[%emt 0:00:08]} f6 {[%emt 0:02:28]} 24. h3 {[%emt 0:00:17]} Rc7 {[%emt 0:01:04]} 25. Ne1 {[%emt 0:00:34]} Rfc8 {[%emt 0:00:19]} 26. Nd3 {[%emt 0:00:35]} Rc2 {[%emt 0:01:09]} (26... f5 $11) 27. Rxc2 $1 $14 {[%emt 0:00:06]} Rxc2 {[%emt 0:00:01]} 28. Nb4 {[%emt 0:00:44]} (28. Nf4 $1 $14 Kf7 29. Bxe4 dxe4 30. Bc3) 28... Rc8 $11 {[%emt 0:01:52]} (28... Nxf2 $2 29. Re1 $18 (29. Rf1 Nxh3+ 30. Bxh3 Bxh3 $18)) 29. Bf1 {[%emt 0:00:26]} Ng5 {[%emt 0:04:48]} 30. h4 {[%emt 0:01:04]} Nf3+ {[%emt 0:00:19]} 31. Kg2 {[%emt 0:00:01]} Nxd4 {[%emt 0:08:21]} 32. Rxd4 {[%emt 0:00:07]} f5 {[%emt 0:00:52]} 33. Rd2 {[%emt 0:00:10]} a5 {[%emt 0:00:17]} 34. Nxd5 {[%emt 0:00:59]} Bxd5+ {[%emt 0:00:25]} 35. Rxd5 {[%emt 0:00:04]} Bxb2 {[%emt 0:00:26][%mdl 4096] Endgame KRB-KRB} 36. a4 {[%emt 0:00:09]} Ba3 {[%emt 0:00:37]} 37. Rd7 {[%emt 0:00:42][%cal Oh4h5]} h6 {[%emt 0:03:03]} (37... Re8 $11) 38. Rb7 {[%emt 0:00:27]} Bc5 {[%emt 0:00:34]} 39. Bc4+ {[%emt 0:00:28]} Kh8 {[%emt 0:00:17][%cal Oc5e3]} 40. Bf7 {[%emt 0:00:37]} Rc6 {[%emt 0:01:03]} 41. h5 {[%emt 0:02:45]} gxh5 {[%emt 0:01:19]} 42. Bxh5 {[%emt 0:00:16]} Bb4 {[%emt 0:02:22]} 43. Be8 {[%emt 0:10:29]} Rf6 {[%emt 0:03:25]} (43... Rc5 $16 {was called for.} 44. Bd7 (44. Rxb6 Kg7 $16) 44... Be1) 44. Bb5 $1 $18 {[%emt 0:02:14]} Kg8 {[%emt 0:08:21]} 45. Bd3 {[%emt 0:00:38]} Kf8 {[%emt 0:02:23]} 46. Rd7 $1 {[%emt 0:03:37]} Bd6 {[%emt 0:03:23]} 47. Kh3 {[%emt 0:04:55]} (47. Bc2 $142) 47... Bb4 {[%emt 0:00:53] [#]} (47... Ke8 $16 {is a better defense.} 48. Bb5 Bc5) 48. Rd5 $1 {[%emt 0:00:23]} Be1 {[%emt 0:00:54]} 49. Kg2 {[%emt 0:03:22]} ({Don't play} 49. Bxf5 $6 Bxf2 50. e4 Bc5 $11) ({And not} 49. Rxf5 Rxf5 50. Bxf5 Bxf2 $11) 49... Ke7 {[%emt 0:01:43]} 50. Bxf5 {[%emt 0:01:23]} Rd6 $2 {[%emt 0:01:06][%mdl 8192] [#]} (50... Rc6 $16 {is a better chance.} 51. Rd7+ Kf8) 51. Rxd6 $1 {[%emt 0:00:25]} Kxd6 {[%emt 0:00:01] KB-KB} 52. Bd3 {[%emt 0:00:07]} Bd2 {[%emt 0:00:56]} 53. Kf3 {[%emt 0:00:18]} Bc3 {[%emt 0:00:07]} 54. Ke2 {[%emt 0:00:58]} Kc5 {[%emt 0:00:30]} 55. f4 {[%emt 0:00:30]} Bf6 {[%emt 0:00:36]} 56. g4 $2 {[%emt 0:00:11]} (56. Bb5 $18 {has better winning chances.}) 56... Be7 $2 {[%emt 0:01:07] Weighted Error Value: White=0.11 (very precise) /Black=0.27 (precise)} (56... Bc3 $16 57. e4 Kd4) 1-0

[Event "FIDE CB Open 2022"]
[Site "Ceske Budejovice"]
[Date "2022.07.01"]
[Round "1.6"]
[White "Hlavac, Rudolf"]
[Black "Mostbauer, Florian"]
[Result "0-1"]
[ECO "B15"]
[WhiteElo "1931"]
[BlackElo "2303"]
[Annotator "TA"]
[PlyCount "60"]
[EventDate "2022.07.01"]
[EventType "swiss"]
[EventCountry "CZE"]
[SourceTitle "playchess.com"]
[Source "ChessBase"]
[SourceQuality "1"]
[TimeControl "40/5400+30:1800+30"]

{[%evp 14,60,34,31,43,33,43,22,17,10,41,0,0,8,0,-72,-43,-72,-68,-85,-29,-83,-80,-79,-85,-110,-74,-119,-112,-185,-179,-281,-294,-295,-286,-270,-268,-308,-301,-275,-269,-349,-360,-1374,-1184,-1114,-1060,-29994,-29995]} 1. e4 {[%emt 0:00:09]} c6 {[%emt 0:00:12]} 2. d4 {[%emt 0:00:18]} d5 {[%emt 0:00:10]} 3. Nc3 {[%emt 0:00:29]} dxe4 {[%emt 0:00:10]} 4. Nxe4 {[%emt 0:00:23]} Nf6 {[%emt 0:00:10]} 5. Nxf6+ {[%emt 0:01:39]} exf6 {[%emt 0:00:10]} 6. c3 {[%emt 0:02:21]} Bd6 {[%emt 0:00:11]} 7. Bd3 {[%emt 0:00:16]} O-O {[%emt 0:00:12]} 8. Qc2 {[%emt 0:00:36]} Re8+ {[%emt 0:00:10] B15: Caro-Kann: 3 Nc3: 3...g6 and 3...dxe4 4 Nxe4 Nf6 5 Nxf6+ exf6.} 9. Ne2 {[%emt 0:00:12]} h5 {[%emt 0:00:26]} 10. Be3 {[%emt 0:06:34]} Nd7 {[%emt 0:00:12] The position is equal.} 11. O-O-O {[%emt 0:00:43]} b5 {[%emt 0:00:22]} 12. Nf4 {[%emt 0:01:23]} Bxf4 {[%emt 0:04:40]} 13. Bxf4 {[%emt 0:00:16][%cal Od4d5]} Nb6 $1 {[%emt 0:00:20] [#]} 14. h4 $146 {[%emt 0:02:05]} (14. Bh7+ $11 Kh8 15. Be4) ({Predecessor:} 14. h3 Be6 15. g4 h4 16. Rhg1 Qd5 17. b3 Qf3 18. Bd2 Bd5 19. g5 f5 20. Bxf5 {½-½ (64) Ask,J (2178)-Pantzar,M (2434) Tylosand 2022}) 14... a5 {[%emt 0:10:52][%cal Ba7a5,Ba5a4][%mdl 32]} 15. Rde1 {[%emt 0:03:42][%cal Of4c7] [#] Black must now prevent Bc7!} Be6 $1 {[%emt 0:03:15]} 16. f3 {[%emt 0:01:50][%cal Og2g4]} Qd5 {[%emt 0:11:54]} (16... b4 $17) 17. Be4 {[%emt 0:02:12]} (17. Bc7 $11 Nc8 18. Bh7+ Kh8 19. Be4) 17... Qd7 $17 {[%emt 0:00:24]} 18. Kb1 {[%emt 0:05:08]} a4 {[%emt 0:06:35]} 19. a3 {[%emt 0:14:57]} Re7 {[%emt 0:19:18]} 20. Qd1 {[%emt 0:05:18]} Rae8 {[%emt 0:04:44][%cal Ba8e8,Be8e4,Be4e2][%mdl 32]} 21. Rhg1 {[%emt 0:01:17]} (21. Ka1 $17 {was called for.}) 21... Bf5 $19 {[%emt 0:02:04][%cal Rf5e4]} 22. Bd2 {[%emt 0:16:28]} (22. Bc1 $142) 22... Bxe4+ {[%emt 0:04:20]} 23. fxe4 {[%emt 0:00:32]} Nc4 {[%emt 0:02:02]} 24. Bc1 {[%emt 0:00:31]} Rxe4 {[%emt 0:01:38]} 25. Rxe4 {[%emt 0:00:36]} Rxe4 {[%emt 0:00:52]} 26. Qxh5 {[%emt 0:00:39]} Qe6 {[%emt 0:01:59] Hoping for ...Re2.} 27. Rd1 {[%emt 0:04:28]} Re2 {[%emt 0:04:01]} 28. d5 $2 {[%emt 0:02:03]} (28. Qf3 Nxa3+ 29. Ka1 Nc2+ 30. Kb1) 28... Qe4+ {[%emt 0:01:22]} 29. Ka1 {[%emt 0:01:52]} Qc2 {[%emt 0:08:29][%cal Oc4d2] ( -> ...Nd2!)} 30. Rg1 {[%emt 0:04:25] [#]} Nxa3 $1 {[%emt 0:01:32][%mdl 512] Weighted Error Value: White=0.92/Black=0.06 (flawless)} 0-1

[Event "FIDE CB Open 2022"]
[Site "Ceske Budejovice"]
[Date "2022.07.01"]
[Round "1.7"]
[White "Heimisson, Hilmir Freyr"]
[Black "Milovs, Daniels"]
[Result "1-0"]
[ECO "E62"]
[WhiteElo "2281"]
[BlackElo "1926"]
[Annotator "TA"]
[PlyCount "79"]
[EventDate "2022.07.01"]
[EventType "swiss"]
[EventCountry "CZE"]
[SourceTitle "playchess.com"]
[Source "ChessBase"]
[SourceQuality "1"]
[TimeControl "40/5400+30:1800+30"]

{[%evp 17,79,46,45,26,33,13,13,12,36,12,4,0,9,-2,8,2,46,28,37,31,32,28,33,30,52,44,41,39,54,41,46,41,70,54,66,67,66,49,95,66,69,53,120,116,128,133,115,124,124,122,126,0,0,13,492,488,472,467,487,475,460,456,409,400]} 1. d4 {[%emt 0:00:01]} Nf6 {[%emt 0:00:06]} 2. c4 {[%emt 0:00:32]} g6 {[%emt 0:00:02]} 3. Nf3 {[%emt 0:00:21]} Bg7 {[%emt 0:00:10]} 4. g3 {[%emt 0:01:22]} O-O {[%emt 0:00:04]} 5. Bg2 {[%emt 0:00:14]} d6 {[%emt 0:00:02]} 6. Nc3 {[%emt 0:02:38]} Nc6 {[%emt 0:00:04]} 7. O-O {[%emt 0:01:07]} Bg4 {[%emt 0:00:07]} 8. d5 {[%emt 0:04:10]} Na5 {[%emt 0:00:45]} 9. Nd2 {[%emt 0:01:54]} c5 {[%emt 0:00:19]} 10. Rb1 {[%emt 0:10:49] E62: King's Indian: Fianchetto: 6...c6 and Panno Variation (6...Nc6) without ...a6.} a6 {[%emt 0:04:38]} 11. a3 {[%emt 0:06:40]} Qc7 {[%emt 0:04:25]} 12. b3 {[%emt 0:02:41] The position is equal.} Rab8 {[%emt 0:02:17]} 13. Bb2 {[%emt 0:06:15]} b5 {[%emt 0:01:45]} 14. h3 {[%emt 0:01:59]} Bd7 {[%emt 0:01:18]} 15. Qc2 {[%emt 0:00:41] [#]} Rb6 $146 {[%emt 0:13:05]} ({Predecessor:} 15... e5 16. dxe6 Bxe6 17. Nce4 Nxe4 18. Nxe4 bxc4 19. Bxg7 Kxg7 20. Qc3+ f6 21. b4 Nb3 22. Rfd1 d5 23. Ng5 Bg8 24. Bxd5 Nd4 25. Bxc4 Qe5 {0-1 (25) Arkell,K (2489)-Socko,B (2617) London 2014}) 16. Na2 {[%emt 0:05:01]} bxc4 {[%emt 0:07:24]} 17. bxc4 {[%emt 0:00:25]} Rfb8 {[%emt 0:04:56] [#] And now ...Bf5 would win.} 18. Bc3 {[%emt 0:17:20]} Rxb1 {[%emt 0:02:43]} 19. Rxb1 {[%emt 0:00:16]} Rxb1+ {[%emt 0:00:22]} 20. Qxb1 {[%emt 0:00:21]} h6 {[%emt 0:03:06]} 21. e4 {[%emt 0:03:56]} Nh5 {[%emt 0:07:35]} 22. Qb2 {[%emt 0:04:28]} Bxc3 {[%emt 0:10:20]} 23. Qxc3 {[%emt 0:00:20]} Qb6 {[%emt 0:02:47]} 24. Bf1 {[%emt 0:01:42]} Nb7 {[%emt 0:01:53]} 25. Kg2 {[%emt 0:01:28]} Qa5 {[%emt 0:06:10]} 26. Qb2 {[%emt 0:00:33]} Qc7 {[%emt 0:03:53]} 27. Nc1 {[%emt 0:01:12]} Na5 {[%emt 0:01:24]} (27... e5 $14) 28. Nd3 {[%emt 0:02:49]} e5 {[%emt 0:01:50]} 29. Qc3 {[%emt 0:06:29]} f5 {[%emt 0:02:54]} ({Better is} 29... Nb7 $14) 30. Be2 $16 {[%emt 0:07:51] Hoping for Bxh5.} Nf6 {[%emt 0:00:13] [#]} 31. exf5 $1 {[%emt 0:00:59]} Bxf5 {[%emt 0:01:35]} 32. f4 {[%emt 0:02:11]} Ne4 {[%emt 0:01:37]} 33. Nxe4 {[%emt 0:02:24]} Bxe4+ {[%emt 0:00:02]} 34. Bf3 {[%emt 0:03:24]} (34. Kg1 $16) 34... Bxd3 $11 {[%emt 0:04:50]} 35. Qxd3 {[%emt 0:00:01] KQB-KQN} Kg7 {[%emt 0:00:02][%mdl 8192] Black cannot hold the game after this.} (35... exf4 $1 $11 36. Qxg6+ Qg7 37. Qe8+ Qf8) 36. fxe5 $18 {[%emt 0:01:47]} dxe5 {[%emt 0:02:44]} 37. d6 {[%emt 0:00:19]} Qd7 {[%emt 0:02:00]} 38. Qd5 {[%emt 0:01:17] Prevents Nb7.} Nxc4 {[%emt 0:00:13]} 39. Qxc4 {[%emt 0:00:24]} Qxd6 {[%emt 0:00:30]} 40. Qd5 {[%emt 0:00:56] Weighted Error Value: White=0.15 (very precise) /Black=0.27 (precise)} 1-0

[Event "FIDE CB Open 2022"]
[Site "Ceske Budejovice"]
[Date "2022.07.01"]
[Round "1.8"]
[White "Svanda, Adam"]
[Black "Toman, Ondrej"]
[Result "1-0"]
[ECO "A25"]
[WhiteElo "1918"]
[BlackElo "2276"]
[Annotator "TA"]
[PlyCount "90"]
[EventDate "2022.07.01"]
[EventType "swiss"]
[EventCountry "CZE"]
[SourceTitle "playchess.com"]
[Source "ChessBase"]
[SourceQuality "1"]
[TimeControl "40/5400+30:1800+30"]

{[%evp 13,90,27,41,21,114,43,53,31,57,40,63,6,19,0,0,4,14,17,29,14,16,6,22,3,6,0,0,0,6,9,18,7,39,31,49,8,99,114,103,-11,-12,-19,109,108,118,0,54,44,52,6,1,0,0,0,0,-35,-34,-33,-34,-35,-26,-44,-48,-309,-170,-366,-362,-358,-240,-342,-292,-438,-360,-387,-370,-331,-332,-438,-446]} 1. c4 {[%emt 0:00:10]} e5 {[%emt 0:00:03]} 2. Nc3 {[%emt 0:00:28]} Nf6 {[%emt 0:00:12]} 3. g3 {[%emt 0:00:10]} Nc6 {[%emt 0:00:07]} 4. Bg2 {[%emt 0:00:11]} Bb4 {[%emt 0:00:09]} 5. Nd5 {[%emt 0:00:40]} Bc5 {[%emt 0:01:29]} 6. e3 {[%emt 0:01:26]} O-O {[%emt 0:01:32]} 7. Ne2 {[%emt 0:00:38]} Re8 {[%emt 0:03:16]} 8. O-O {[%emt 0:03:28] A25: English Opening vs King's Indian with ...Nc6 but without early d3.} a5 {[%emt 0:04:21] [#]} (8... Nxd5 $11 9. cxd5 Ne7) 9. d4 {[%emt 0:04:50]} ({Better is} 9. Nxf6+ $1 $16 Qxf6 10. f4) 9... Bf8 {[%emt 0:03:49]} 10. Nec3 {[%emt 0:03:37] [#] White is slightly better.} d6 $146 {[%emt 0:04:42]} ({Predecessor:} 10... Nxd5 11. cxd5 Nb8 12. e4 d6 13. f4 f6 14. fxe5 dxe5 15. dxe5 fxe5 16. Be3 Bd6 {½-½ (39) Messina,D (1857)-Ovaskainen,J (1839) Erice 2014}) 11. b3 {[%emt 0:05:13]} Nb4 {[%emt 0:14:42]} 12. Bb2 {[%emt 0:04:00]} (12. Nxf6+ $1 $14 gxf6 13. Bb2) 12... Nbxd5 $11 {[%emt 0:06:55]} 13. Nxd5 {[%emt 0:01:26]} Nxd5 {[%emt 0:08:10]} 14. Bxd5 {[%emt 0:06:10]} c6 {[%emt 0:01:12]} 15. Bg2 {[%emt 0:00:34]} Qc7 {[%emt 0:02:34]} 16. Qc2 {[%emt 0:03:31]} g6 {[%emt 0:06:13]} 17. Rac1 {[%emt 0:06:01]} Bg7 {[%emt 0:02:12]} 18. Rfd1 {[%emt 0:09:20]} Qe7 {[%emt 0:10:58]} 19. dxe5 {[%emt 0:02:41]} dxe5 {[%emt 0:00:59]} 20. c5 {[%emt 0:00:59]} Bf5 {[%emt 0:00:57]} 21. e4 {[%emt 0:00:41]} Be6 {[%emt 0:01:12]} 22. Rd6 {[%emt 0:02:29]} Qg5 {[%emt 0:02:13][%cal Oa5a4]} (22... a4 $5) 23. Rf1 {[%emt 0:08:21]} Qh5 {[%emt 0:09:32]} 24. Qc3 {[%emt 0:05:41]} Bh3 {[%emt 0:02:10]} (24... a4 $11) 25. Bxh3 $16 {[%emt 0:05:25]} Qxh3 {[%emt 0:00:02]} 26. Qf3 {[%emt 0:00:34]} (26. Rfd1 $16) 26... Bf8 $11 {[%emt 0:01:58]} 27. Rf6 {[%emt 0:04:46]} Bxc5 {[%emt 0:00:40]} (27... Qd7 $11) 28. Rxf7 $16 {[%emt 0:00:39]} Rf8 {[%emt 0:00:33]} 29. Rf6 {[%emt 0:03:04]} ({White has to play} 29. Rxf8+ $16 Rxf8 30. Qc3) 29... Bd4 {[%emt 0:05:00]} (29... Qe6 $1 $11 30. Rxe6 Rxf3) 30. Bxd4 $14 {[%emt 0:01:29]} exd4 {[%emt 0:00:03]} 31. e5 {[%emt 0:01:03]} (31. Rxf8+ $14 Rxf8 32. Qd3) 31... Qd7 $11 {[%emt 0:01:46]} 32. Qd3 {[%emt 0:02:04]} Rxf6 {[%emt 0:01:40]} 33. exf6 {[%emt 0:00:08][%mdl 4096] Endgame KQR-KQR} Kf7 {[%emt 0:00:36]} 34. Rd1 {[%emt 0:01:34]} Rd8 {[%emt 0:00:31]} 35. Qd2 {[%emt 0:02:42]} Kxf6 {[%emt 0:02:19]} 36. Qxa5 {[%emt 0:00:11]} Qd5 {[%emt 0:01:27]} 37. Qxd5 {[%emt 0:01:53]} Rxd5 {[%emt 0:00:30] KR-KR} 38. Rd3 $2 {[%emt 0:00:23][%mdl 8192] This costs White the game.} (38. Kf1 $1 $15) 38... Ke5 $19 {[%emt 0:00:12] aiming for ...Ke4.} 39. f3 {[%emt 0:00:12]} (39. Kf1) 39... Rc5 {[%emt 0:01:18]} 40. Rd2 {[%emt 0:01:22]} Rc3 {[%emt 0:00:26] Hoping for ...d3.} 41. Kf2 {[%emt 0:30:21]} (41. Re2+ {was called for.} Kd6 42. f4) 41... b5 {[%emt 0:02:36] White must now prevent ...c5.} 42. Ke2 {[%emt 0:00:00]} (42. b4 $142) 42... Re3+ {[%emt 0:02:36]} 43. Kf2 {[%emt 0:00:00]} Kd5 {[%emt 0:00:07]} 44. Re2 {[%emt 0:00:00] [#]} Rc3 {[%emt 0:00:40]} 45. Re8 {[%emt 0:00:00]} Rc2+ {[%emt 0:00:20][%mdl 32768] Weighted Error Value: White=0.46/Black=0.27 (precise) . Loss on time!?} 1-0

[Event "FIDE CB Open 2022"]
[Site "Ceske Budejovice"]
[Date "2022.07.01"]
[Round "1.9"]
[White "Hrbek, Stepan"]
[Black "Stastna, Martina"]
[Result "1-0"]
[ECO "D35"]
[WhiteElo "2272"]
[BlackElo "1912"]
[Annotator "TA"]
[PlyCount "97"]
[EventDate "2022.07.01"]
[EventType "swiss"]
[EventCountry "CZE"]
[SourceTitle "playchess.com"]
[Source "ChessBase"]
[SourceQuality "1"]
[TimeControl "40/5400+30:1800+30"]

{[%evp 17,97,20,19,-13,-7,0,0,-8,27,31,38,27,26,-24,0,0,0,-9,12,-34,-22,-25,-14,-43,0,0,0,0,10,6,12,11,18,12,13,14,42,-14,-14,-14,-14,-14,0,0,0,0,5,0,0,0,34,29,11,0,75,75,102,34,81,0,193,200,773,771,735,758,707,626,767,721,1070,1058,941,917,1371,1340,1339,1184,1210,1043,792,697]} 1. d4 {[%emt 0:00:03]} d5 {[%emt 0:00:09]} 2. c4 {[%emt 0:00:21]} e6 {[%emt 0:00:29]} 3. Nc3 {[%emt 0:00:50]} Nf6 {[%emt 0:01:03]} 4. cxd5 {[%emt 0:00:25]} exd5 {[%emt 0:00:46]} 5. Bg5 {[%emt 0:00:16]} c6 {[%emt 0:01:22]} 6. e3 {[%emt 0:00:09]} Bd6 {[%emt 0:00:59]} 7. Bd3 {[%emt 0:01:35]} Nbd7 {[%emt 0:01:53]} 8. Nf3 {[%emt 0:06:27]} O-O {[%emt 0:06:53]} 9. O-O {[%emt 0:00:26]} Re8 {[%emt 0:01:12] [#]} 10. Bf4 $146 {[%emt 0:13:56] D35: Queen's Gambit Declined: Exchange Variation.} ({Predecessor:} 10. Qc2 Nf8 11. Rae1 Bg4 12. Bh4 Bxf3 13. gxf3 Be7 14. Bg3 Ne6 15. Kh1 g6 16. f4 Ng7 17. f5 Qd7 18. fxg6 hxg6 {1-0 (37) Matlakov,M (2674)-Xiong,J (2688) Chess.com INT 2022}) 10... Bxf4 {[%emt 0:05:48]} 11. exf4 {[%emt 0:00:07]} Nf8 {[%emt 0:08:27]} 12. Qc2 {[%emt 0:01:26] The position is equal.} Qb6 {[%emt 0:03:04]} 13. f5 {[%emt 0:13:40]} Bd7 {[%emt 0:05:19]} 14. Rfe1 {[%emt 0:01:38]} Rac8 {[%emt 0:04:24]} 15. Qb3 {[%emt 0:04:44]} (15. Rac1 $142) 15... Qxb3 {[%emt 0:09:17]} 16. axb3 {[%emt 0:00:11]} Rxe1+ {[%emt 0:00:17]} 17. Nxe1 {[%emt 0:06:17]} Re8 {[%emt 0:05:30]} 18. Nf3 {[%emt 0:08:40]} (18. f3 $11) 18... a6 $15 {[%emt 0:01:25]} 19. Ne5 {[%emt 0:03:04]} Bc8 {[%emt 0:10:28]} 20. b4 {[%emt 0:09:39]} N8d7 {[%emt 0:03:27]} 21. Nxd7 {[%emt 0:03:35]} Bxd7 {[%emt 0:02:46]} 22. f3 {[%emt 0:00:39]} Kf8 {[%emt 0:03:59]} 23. Kf2 {[%emt 0:00:37]} Ke7 {[%emt 0:00:39]} 24. g4 {[%emt 0:00:53]} Kd6 {[%emt 0:06:24]} 25. h4 {[%emt 0:00:34]} g6 {[%emt 0:00:53]} 26. fxg6 {[%emt 0:00:41]} hxg6 {[%emt 0:02:28]} 27. h5 {[%emt 0:02:39]} (27. Rh1 $14) 27... gxh5 $11 {[%emt 0:02:07]} 28. g5 {[%emt 0:00:09]} Ng8 {[%emt 0:00:12] Black wants to play ...Ne7.} 29. Rh1 {[%emt 0:00:24]} Ne7 {[%emt 0:01:03] White must now prevent ...Rh8.} 30. Rxh5 {[%emt 0:00:24]} Bf5 {[%emt 0:00:44]} 31. Rh6+ {[%emt 0:04:08]} Kd7 {[%emt 0:00:58]} 32. Bf1 {[%emt 0:00:18]} Bg6 {[%emt 0:03:42]} 33. Bh3+ {[%emt 0:04:37]} Kc7 {[%emt 0:03:13]} 34. Ne2 {[%emt 0:03:34]} Rg8 {[%emt 0:04:38]} 35. Ng3 {[%emt 0:03:02]} Kb6 {[%emt 0:00:45]} (35... Rf8 $1 $11 {remains equal.}) 36. f4 $16 {[%emt 0:04:51][%cal Bf3f4,Bf4f5][%mdl 32]} Bc2 {[%emt 0:00:54]} 37. Bf1 {[%emt 0:01:05]} ({White should play} 37. Ke3 $16) 37... Ng6 {[%emt 0:00:49]} (37... Re8 $14 {might be stronger.}) 38. Nh5 {[%emt 0:02:33]} (38. Kf3 $16) 38... Bd1 $2 {[%emt 0:00:20] [#]} (38... Re8 $11) 39. Nf6 $18 {[%emt 0:00:12]} Rh8 {[%emt 0:00:29]} (39... Rg7) 40. f5 {[%emt 0:00:59] White is clearly winning.} Rxh6 {[%emt 0:00:16]} 41. gxh6 {[%emt 0:30:05][%mdl 4096] Endgame KBN-KBN} Nh8 {[%emt 0:30:26]} 42. Ke3 {[%emt 0:00:00]} Bc2 {[%emt 0:00:00]} 43. Kf4 {[%emt 0:00:00]} Kc7 {[%emt 0:00:00]} 44. Ke5 {[%emt 0:00:00]} Kd8 {[%emt 0:00:00]} 45. Ng8 {[%emt 0:00:00]} Ke8 {[%emt 0:00:00]} 46. Kf6 {[%emt 0:00:00]} Kf8 {[%emt 0:00:00]} 47. Ne7 {[%emt 0:00:00]} Ba4 {[%emt 0:00:00]} 48. h7 {[%emt 0:00:00] [#] White threatens Bd3 and mate.} Bc2 {[%emt 0:00:00] Inhibits Bd3.} 49. Be2 {[%emt 0:00:00] Weighted Error Value: White=0.15 (very precise) /Black=0.31} 1-0